lending/lending_fUSD_20250430
["ID","MTS","AMOUNT","RATE_DAILY","PERIOD"]
[359443897,1746021042587,-2066.5566721,0.00029521,8]
[359443898,1746021042597,-3403.92999578,0.0003,2]
[359443899,1746021042607,-3030.35460531,0.0003,5]
[359443900,1746021042616,-152.19,0.00030137,2]
[359443901,1746021042626,-400.0,0.00030137,2]
[359443902,1746021042635,-211.47266868,0.00030352,5]
[359443903,1746021042645,-2066.5566721,0.00030383,9]
[359443904,1746021042655,-1613.0,0.00030491,2]
[359443905,1746021042665,-151.0,0.00030886,2]
[359443906,1746021042674,-267.46074303,0.00030886,2]
[359443907,1746021042684,-600.0,0.00031,2]
[359443908,1746021042694,-2066.5566721,0.00031245,9]
[359443909,1746021042704,-1896.36,0.00031334,2]
[359443910,1746021042713,-240.87224033,0.00031412,2]
[359443911,1746021042724,-163.22,0.00031472,2]
[359443912,1746021042734,-922.0,0.00031562,2]
[359443913,1746021042744,-1217.901,0.00031562,2]
[359443914,1746021042753,-292.183,0.00031562,2]
[359443915,1746021042762,-580.0,0.00031562,2]
[359443916,1746021042772,-417.779,0.00031562,2]
[359443917,1746021042782,-549.0,0.00031562,2]
[359443918,1746021042791,-913.0,0.00031562,2]
[359443919,1746021042801,-878.0,0.00031562,2]
[359443920,1746021042811,-153.0,0.00031562,2]
[359443921,1746021042820,-6746.0,0.00031562,2]
[359443922,1746021042831,-892.0,0.00031772,5]
[359443923,1746021042840,-2066.5566721,0.00032107,10]
[359443924,1746021042849,-151.0,0.00032255,2]
[359443925,1746021042858,-277.35679052,0.00032255,2]
[359443926,1746021042868,-3685.70905366,0.00032863,2]
[359443927,1746021042877,-400.0,0.00032877,2]
[359443928,1746021042887,-2066.5566721,0.00032969,11]
[359443929,1746021042896,-650.0,0.00033,2]
[359443930,1746021042905,-312.18,0.00033165,2]
[359443931,1746021042914,-1000.0,0.000333,7]
[359443932,1746021042923,-557.78,0.00033435,2]
[359443933,1746021042933,-150.0,0.00033435,2]
[359443934,1746021042943,-1263.26,0.00033435,2]
[359443935,1746021042953,-1852.42,0.00033435,2]
[359443936,1746021042962,-1000.0,0.00033435,2]
[359443937,1746021042972,-2699.49,0.00033435,2]
[359443938,1746021042981,-152.45,0.00033435,2]
[359443939,1746021042991,-486.07,0.00033435,2]
[359443940,1746021043001,-486.07,0.00033444,2]
[359443942,1746021043019,-486.07,0.00033452,2]
[359443944,1746021043029,-486.07,0.00033461,2]
[359443946,1746021043039,-486.07,0.0003347,2]
[359443948,1746021043048,-486.07,0.00033479,2]
[359443950,1746021043058,-486.07,0.00033488,2]
[359443952,1746021043067,-486.07,0.00033496,2]
[359443954,1746021043076,-486.07,0.00033505,2]
[359443956,1746021043086,-486.07,0.00033514,2]
[359443958,1746021043095,-486.07,0.00033523,2]
[359443959,1746021043105,-486.07,0.00033532,2]
[359443960,1746021043116,-486.07,0.0003354,2]
[359443961,1746021043125,-486.07,0.00033549,2]
[359443962,1746021043135,-486.07,0.00033558,2]
[359443963,1746021043145,-486.07,0.00033567,2]
[359443966,1746021043156,-486.07,0.00033576,2]
[359443969,1746021043166,-486.07,0.00033584,2]
[359443972,1746021043175,-486.07,0.00033593,2]
[359443973,1746021043184,-1896.36,0.00033598,2]
[359443975,1746021043194,-486.07,0.00033602,2]
[359443978,1746021043203,-151.0,0.00033624,2]
[359443980,1746021043212,-287.61899177,0.00033624,2]
[359443982,1746021043221,-2066.5566721,0.00033831,11]
[359443984,1746021043231,-1027.0,0.000342,7]
[359443986,1746021043240,-152.45,0.00034423,2]
[359443988,1746021043249,-150.0,0.00034548,10]
[359443990,1746021043258,-606.628,0.00034562,2]
[359443993,1746021043268,-580.0,0.00034562,2]
[359443995,1746021043277,-876.05,0.00034562,2]
[359443997,1746021043286,-5211.755,0.00034562,2]
[359443999,1746021043296,-2066.5566721,0.00034693,12]
[359444000,1746021043305,-300.0,0.00034805,2]
[359444003,1746021043315,-151.0,0.00034993,2]
[359444006,1746021043324,-298.26089446,0.00034993,2]
[359444008,1746021043333,-700.0,0.00035,2]
[359444010,1746021043342,-240.87224033,0.00035245,2]
[359444011,1746021043351,-451.24,0.00035351,2]
[359444013,1746021043360,-1152.99,0.00035351,2]
[359444015,1746021043370,-351.81,0.00035351,2]
[359444018,1746021043379,-1152.99,0.00035351,2]
[359444020,1746021043389,-162.11,0.00035351,2]
[359444022,1746021043398,-351.81,0.00035351,2]
[359444024,1746021043409,-150.0,0.00035351,2]
[359444025,1746021043418,-162.11,0.00035351,2]
[359444027,1746021043427,-162.11,0.00035351,2]
[359444029,1746021043437,-150.0,0.00035351,2]
[359444032,1746021043446,-1149.34,0.00035351,2]
[359444034,1746021043456,-351.81,0.00035351,2]
[359444035,1746021043465,-162.11,0.00035351,2]
[359444037,1746021043475,-150.0,0.00035351,2]
[359444039,1746021043484,-162.11,0.00035351,2]
[359444041,1746021043497,-150.0,0.00035351,2]
[359444042,1746021043506,-150.0,0.00035351,2]
[359444044,1746021043515,-150.0,0.00035351,2]
[359444046,1746021043524,-150.0,0.00035351,2]
[359444048,1746021043534,-152.0,0.00035383,3]
[359444049,1746021043543,-12500.0,0.00035523,5]
[359444050,1746021043552,-12500.0,0.00035532,5]
[359444051,1746021043562,-12500.0,0.00035541,5]
[359444052,1746021043571,-12500.0,0.0003555,5]
[359444053,1746021043581,-12500.0,0.0003555,5]
[359444054,1746021043590,-2066.5566721,0.00035555,12]
[359444055,1746021043599,-12500.0,0.00035559,5]
[359444056,1746021043609,-12500.0,0.00035559,5]
[359444057,1746021043618,-12500.0,0.00035567,5]
[359444058,1746021043627,-12500.0,0.00035567,5]
[359444059,1746021043637,-500.0,0.00035573,5]
[359444060,1746021043646,-500.0,0.00035573,5]
[359444061,1746021043658,-502.19667785,0.00035573,5]
[359444062,1746021043669,-500.86272975,0.00035573,5]
[359444063,1746021043678,-501.74607688,0.00035573,5]
[359444064,1746021043688,-500.0,0.00035573,5]
[359444065,1746021043697,-301.84461807,0.00035573,5]
[359444066,1746021043707,-243.25265261,0.00035573,5]
[359444067,1746021043717,-500.0,0.00035573,5]
[359444068,1746021043727,-500.0,0.00035573,5]
[359444069,1746021043736,-501.90027515,0.00035573,5]
[359444070,1746021043745,-208.35397282,0.00035573,5]
[359444071,1746021043755,-500.0,0.00035573,5]
[359444072,1746021043764,-500.0,0.00035573,5]
[359444073,1746021043774,-500.0,0.00035573,5]
[359444074,1746021043783,-12500.0,0.00035576,5]
[359444076,1746021043792,-12500.0,0.00035576,5]
[359444077,1746021043801,-12500.0,0.00035585,5]
[359444078,1746021043810,-12500.0,0.00035585,5]
[359444079,1746021043820,-500.0,0.00035589,2]
[359444080,1746021043829,-12500.0,0.00035594,5]
[359444081,1746021043839,-12500.0,0.00035594,5]
[359444082,1746021043848,-12500.0,0.00035603,5]
[359444083,1746021043857,-12500.0,0.00035603,5]
[359444084,1746021043866,-12500.0,0.00035611,5]
[359444085,1746021043875,-12500.0,0.00035611,5]
[359444086,1746021043884,-500.0,0.00035616,7]
[359444087,1746021043893,-500.0,0.00035616,7]
[359444088,1746021043902,-500.0,0.00035616,7]
[359444089,1746021043914,-500.0,0.00035616,7]
[359444091,1746021043923,-500.0,0.00035616,7]
[359444093,1746021043933,-500.0,0.00035616,7]
[359444095,1746021043943,-500.0,0.00035616,7]
[359444097,1746021043953,-327.49545882,0.00035616,7]
[359444098,1746021043962,-500.0,0.00035616,7]
[359444100,1746021043971,-500.0,0.00035616,7]
[359444101,1746021043981,-500.0,0.00035616,7]
[359444102,1746021043991,-500.0,0.00035616,7]
[359444103,1746021044000,-500.0,0.00035616,7]
[359444104,1746021044009,-500.0,0.00035616,7]
[359444105,1746021044019,-479.24682117,0.00035616,7]
[359444106,1746021044028,-500.0,0.00035616,7]
[359444107,1746021044038,-12500.0,0.0003562,5]
[359444108,1746021044049,-12500.0,0.0003562,5]
[359444109,1746021044058,-12500.0,0.00035629,5]
[359444110,1746021044068,-12500.0,0.00035629,5]
[359444111,1746021044077,-500.0,0.0003564,5]
[359444112,1746021044086,-500.0,0.0003564,5]
[359444113,1746021044096,-500.0,0.0003564,5]
[359444114,1746021044105,-8813.99927851,0.00035671,5]
[359444115,1746021044115,-1896.36,0.00035862,2]
[359444116,1746021044124,-743.7968483,0.00035917,4]
[359444117,1746021044134,-500.0,0.00036,2]
[359444118,1746021044143,-1000.0,0.00036,7]
[359444119,1746021044152,-451.24,0.00036156,2]
[359444120,1746021044164,-150.0,0.00036156,2]
[359444121,1746021044173,-1152.99,0.00036156,2]
[359444122,1746021044182,-351.81,0.00036156,2]
[359444123,1746021044191,-162.11,0.00036156,2]
[359444124,1746021044200,-300.0,0.00036175,2]
[359444125,1746021044210,-151.0,0.00036362,2]
[359444126,1746021044219,-309.29654756,0.00036362,2]
[359444127,1746021044228,-2066.5566721,0.00036417,13]
[359444128,1746021044238,-163.22,0.00036666,2]
[359444129,1746021044247,-1435.0,0.000369,7]
[359444130,1746021044257,-2050.41,0.00037,7]
[359444131,1746021044266,-39407.44040435,0.00037,5]
[359444132,1746021044275,-1000.0,0.000371,30]
[359444133,1746021044286,-152.0,0.00037125,4]
[359444134,1746021044295,-1000.0,0.000372,30]
[359444135,1746021044305,-1000.0,0.00037223,30]
[359444136,1746021044314,-2066.5566721,0.00037279,13]
[359444137,1746021044324,-1000.0,0.000373,30]
[359444138,1746021044334,-1000.0,0.000374,30]
[359444139,1746021044343,-1000.0,0.000375,30]
[359444140,1746021044353,-2000.0,0.00037505,15]
[359444141,1746021044362,-200.0,0.00037505,10]
[359444142,1746021044371,-2000.0,0.00037505,15]
[359444143,1746021044381,-500.0,0.00037506,15]
[359444144,1746021044391,-2000.0,0.00037506,15]
[359444145,1746021044400,-2000.0,0.00037506,15]
[359444146,1746021044414,-200.0,0.00037506,10]
[359444147,1746021044424,-200.0,0.00037506,10]
[359444148,1746021044433,-1000.0,0.00037614,2]
[359444149,1746021044442,-1200.92511014,0.0003763,120]
[359444150,1746021044451,-1222.73875972,0.0003763,120]
[359444151,1746021044462,-1938.72330869,0.0003763,30]
[359444152,1746021044472,-1000.0,0.000377,30]
[359444153,1746021044488,-151.0,0.00037731,2]
[359444154,1746021044503,-217.15772393,0.00037731,2]
[359444155,1746021044513,-2000.0,0.00037773,31]
[359444156,1746021044523,-500.0,0.00037787,10]
[359444157,1746021044534,-302.44,0.00037787,2]
[359444158,1746021044543,-302.44,0.00037787,2]
[359444159,1746021044553,-302.44,0.00037787,2]
[359444160,1746021044563,-302.44,0.00037787,2]
[359444161,1746021044743,-302.44,0.00037787,2]
[359444162,1746021044753,-302.44,0.00037787,2]
[359444163,1746021044762,-302.44,0.00037787,2]
[359444164,1746021044771,-302.44,0.00037787,2]
[359444165,1746021044780,-302.44,0.00037787,2]
[359444166,1746021044790,-302.44,0.00037787,2]
[359444167,1746021044799,-2189.8490467,0.00037795,2]
[359444168,1746021044809,-1378.4065878,0.00037795,2]
[359444169,1746021044818,-631.1667377,0.00037795,2]
[359444170,1746021044827,-447.9481294,0.00037795,2]
[359444171,1746021044836,-71945.7874476,0.00037795,2]
[359444172,1746021044846,-917.17,0.000378,2]
[359444173,1746021044855,-159.0,0.000378,37]
[359444174,1746021044865,-500.0,0.00037807,10]
[359444175,1746021044874,-450.0,0.00037808,3]
[359444176,1746021044884,-502.46638056,0.00037808,12]
[359444177,1746021044893,-470.0,0.00037808,12]
[359444178,1746021044902,-155.215563,0.00037808,30]
[359444179,1746021044914,-155.215563,0.00037808,30]
[359444180,1746021044923,-155.215563,0.00037808,30]
[359444181,1746021044933,-155.215563,0.00037808,30]
[359444182,1746021044942,-155.215563,0.00037808,30]
[359444183,1746021044952,-155.215563,0.00037808,30]
[359444184,1746021044961,-155.215563,0.00037808,30]
[359444185,1746021044970,-155.215563,0.00037808,30]
[359444186,1746021044980,-155.215563,0.00037808,30]
[359444187,1746021044989,-155.215563,0.00037808,30]
[359444188,1746021044999,-155.215563,0.00037808,30]
[359444189,1746021045008,-155.215563,0.00037808,30]
[359444190,1746021045018,-155.215563,0.00037808,30]
[359444191,1746021045030,-155.215563,0.00037808,30]
[359444192,1746021045040,-155.215563,0.00037808,30]
[359444193,1746021045050,-380.0780434,0.00037808,12]
[359444194,1746021045059,-450.0,0.00037808,12]
[359444195,1746021045071,-508.62934066,0.00037808,12]
[359444196,1746021045083,-524.11258772,0.00037808,12]
[359444197,1746021045094,-500.0,0.00037808,12]
[359444198,1746021045104,-500.0,0.00037808,12]
[359444199,1746021045115,-500.0,0.00037808,12]
[359444200,1746021045127,-307.77283027,0.00037808,12]
[359444201,1746021045136,-1000.0,0.00037808,12]
[359444202,1746021045148,-450.0,0.00037808,12]
[359444203,1746021045164,-450.0,0.00037808,12]
[359444204,1746021045174,-450.0,0.00037808,12]
[359444205,1746021045187,-450.0,0.00037808,12]
[359444206,1746021045199,-486.9828451,0.00037808,12]
[359444207,1746021045211,-507.86475724,0.00037808,12]
[359444208,1746021045220,-504.27289461,0.00037808,12]
[359444209,1746021045232,-547.4442732,0.00037808,12]
[359444210,1746021045244,-450.0,0.00037808,12]
[359444211,1746021045255,-450.0,0.00037808,12]
[359444212,1746021045270,-450.0,0.00037808,12]
[359444213,1746021045279,-450.0,0.00037808,12]
[359444214,1746021045290,-450.0,0.00037808,12]
[359444215,1746021045300,-514.87178478,0.00037808,12]
[359444216,1746021045309,-450.0,0.00037808,12]
[359444217,1746021045321,-450.0,0.00037808,12]
[359444218,1746021045330,-450.0,0.00037808,12]
[359444219,1746021045341,-450.0,0.00037808,12]
[359444220,1746021045350,-450.0,0.00037808,12]
[359444221,1746021045363,-450.0,0.00037808,12]
[359444222,1746021045373,-450.0,0.00037808,12]
[359444223,1746021045384,-450.0,0.00037808,12]
[359444224,1746021045395,-505.71794473,0.00037808,12]
[359444225,1746021045410,-450.0,0.00037808,12]
[359444226,1746021045420,-450.0,0.00037808,12]
[359444227,1746021045430,-450.0,0.00037808,12]
[359444228,1746021045441,-450.0,0.00037808,12]
[359444229,1746021045454,-542.65368756,0.00037808,12]
[359444230,1746021045470,-511.91258655,0.00037808,12]
[359444231,1746021045480,-450.0,0.00037808,12]
[359444232,1746021045490,-450.0,0.00037808,12]
[359444233,1746021045499,-450.0,0.00037808,12]
[359444234,1746021045511,-450.0,0.00037808,12]
[359444235,1746021045520,-450.0,0.00037808,12]
[359444236,1746021045530,-450.0,0.00037808,12]
[359444237,1746021045541,-450.0,0.00037808,12]
[359444238,1746021045550,-450.0,0.00037808,12]
[359444239,1746021045561,-450.0,0.00037808,12]
[359444240,1746021045570,-450.0,0.00037808,12]
[359444241,1746021045579,-450.0,0.00037808,12]
[359444242,1746021045588,-450.0,0.00037808,12]
[359444243,1746021045598,-555.1454023,0.00037808,12]
[359444244,1746021045607,-450.0,0.00037808,12]
[359444245,1746021045617,-450.0,0.00037808,12]
[359444246,1746021045626,-511.83990601,0.00037808,12]
[359444247,1746021045636,-450.0,0.00037808,12]
[359444248,1746021045646,-450.0,0.00037808,12]
[359444249,1746021045659,-450.0,0.00037808,12]
[359444250,1746021045668,-450.0,0.00037808,12]
[359444251,1746021045678,-450.0,0.00037808,12]
[359444252,1746021045687,-450.0,0.00037808,12]
[359444253,1746021045697,-450.0,0.00037808,12]
[359444254,1746021045706,-500.0,0.00037808,12]
[359444255,1746021045716,-553.27365495,0.00037808,12]
[359444256,1746021045725,-503.40939563,0.00037808,12]
[359444257,1746021045735,-450.0,0.00037808,12]
[359444258,1746021045744,-450.0,0.00037808,12]
[359444259,1746021045754,-450.0,0.00037808,12]
[359444260,1746021045763,-450.0,0.00037808,12]
[359444261,1746021045773,-450.0,0.00037808,12]
[359444262,1746021045783,-513.65264512,0.00037808,12]
[359444263,1746021045792,-450.0,0.00037808,12]
[359444264,1746021045802,-450.0,0.00037808,12]
[359444265,1746021045811,-450.0,0.00037808,12]
[359444266,1746021045821,-450.0,0.00037808,12]
[359444267,1746021045830,-450.0,0.00037808,12]
[359444268,1746021045839,-450.0,0.00037808,12]
[359444269,1746021045849,-450.0,0.00037808,12]
[359444270,1746021045859,-450.0,0.00037808,12]
[359444271,1746021045869,-450.0,0.00037808,12]
[359444272,1746021045879,-450.0,0.00037808,12]
[359444273,1746021045888,-539.49918008,0.00037808,12]
[359444274,1746021045898,-450.0,0.00037808,12]
[359444275,1746021045908,-450.0,0.00037808,12]
[359444276,1746021045918,-450.0,0.00037808,12]
[359444277,1746021045927,-450.0,0.00037808,12]
[359444278,1746021045937,-450.0,0.00037808,12]
[359444279,1746021045947,-541.08491608,0.00037808,12]
[359444280,1746021045957,-450.0,0.00037808,12]
[359444281,1746021045966,-173.42806469,0.00037808,12]
[359444282,1746021045976,-450.0,0.00037808,12]
[359444284,1746021045985,-206.81912537,0.00037808,12]
[359444286,1746021045995,-450.0,0.00037808,12]
[359444288,1746021046004,-450.0,0.00037808,12]
[359444290,1746021046013,-450.0,0.00037808,12]
[359444292,1746021046023,-450.0,0.00037808,12]
[359444294,1746021046032,-534.45584963,0.00037808,12]
[359444296,1746021046042,-450.0,0.00037808,12]
[359444298,1746021046052,-450.0,0.00037808,12]
[359444300,1746021046061,-450.0,0.00037808,12]
[359444302,1746021046071,-450.0,0.00037808,12]
[359444304,1746021046081,-531.39949321,0.00037808,12]
[359444306,1746021046089,-450.0,0.00037808,12]
[359444308,1746021046099,-586.60118094,0.00037808,12]
[359444310,1746021046109,-450.0,0.00037808,12]
[359444312,1746021046119,-545.96849959,0.00037808,12]
[359444314,1746021046129,-460.47911879,0.00037808,12]
[359444316,1746021046138,-450.0,0.00037808,12]
[359444318,1746021046147,-546.13807816,0.00037808,12]
[359444320,1746021046161,-572.93314606,0.00037808,12]
[359444322,1746021046172,-450.0,0.00037808,12]
[359444324,1746021046182,-450.0,0.00037808,12]
[359444326,1746021046192,-450.0,0.00037808,12]
[359444328,1746021046201,-450.0,0.00037808,12]
[359444330,1746021046210,-450.0,0.00037808,12]
[359444332,1746021046220,-450.0,0.00037808,12]
[359444334,1746021046229,-515.81712522,0.00037808,12]
[359444336,1746021046238,-583.70117328,0.00037808,12]
[359444338,1746021046247,-450.0,0.00037808,12]
[359444340,1746021046256,-1000.0,0.00037808,2]
[359444342,1746021046265,-450.0,0.00037808,12]
[359444344,1746021046276,-450.0,0.00037808,12]
[359444346,1746021046286,-450.0,0.00037808,12]
[359444348,1746021046295,-450.0,0.00037808,12]
[359444350,1746021046305,-450.0,0.00037808,12]
[359444352,1746021046314,-450.0,0.00037808,12]
[359444354,1746021046323,-450.0,0.00037808,12]
[359444356,1746021046333,-450.0,0.00037808,12]
[359444358,1746021046343,-450.0,0.00037808,12]
[359444360,1746021046352,-450.0,0.00037808,12]
[359444363,1746021046362,-450.0,0.00037808,12]
[359444365,1746021046371,-450.0,0.00037808,12]
[359444366,1746021046382,-450.0,0.00037808,12]
[359444369,1746021046392,-450.0,0.00037808,12]
[359444370,1746021046401,-300.0,0.00037808,12]
[359444373,1746021046413,-450.0,0.00037808,12]
[359444375,1746021046423,-1886.46,0.00037808,12]
[359444377,1746021046432,-500.0,0.00037808,12]
[359444379,1746021046442,-500.0,0.00037808,12]
[359444381,1746021046452,-500.0,0.00037808,12]
[359444383,1746021046469,-500.0,0.00037808,12]
[359444385,1746021046479,-500.0,0.00037808,12]
[359444388,1746021046488,-501.21805917,0.00037808,12]
[359444390,1746021046499,-1177.61,0.00037808,12]
[359444391,1746021046508,-450.0,0.00037808,12]
[359444394,1746021046518,-450.0,0.00037808,12]
[359444395,1746021046527,-450.0,0.00037808,7]
[359444396,1746021046536,-450.0,0.00037808,12]
[359444397,1746021046546,-450.0,0.00037808,12]
[359444398,1746021046556,-450.0,0.00037808,12]
[359444400,1746021046567,-450.0,0.00037808,12]
[359444402,1746021046578,-450.0,0.00037808,12]
[359444404,1746021046587,-450.0,0.00037808,12]
[359444405,1746021046596,-450.0,0.00037808,12]
[359444407,1746021046606,-450.0,0.00037808,12]
[359444409,1746021046615,-450.0,0.00037808,12]
[359444410,1746021046626,-538.89273334,0.00037808,12]
[359444411,1746021046636,-470.0,0.00037808,12]
[359444412,1746021046645,-1978.04,0.00037808,12]
[359444413,1746021046655,-401.3866961,0.00037808,12]
[359444414,1746021046666,-450.0,0.00037808,12]
[359444415,1746021046675,-450.0,0.00037808,12]
[359444416,1746021046685,-450.0,0.00037808,12]
[359444417,1746021046694,-450.0,0.00037808,12]
[359444418,1746021046705,-450.0,0.00037808,12]
[359444419,1746021046715,-450.0,0.00037808,12]
[359444420,1746021046724,-450.0,0.00037808,12]
[359444421,1746021046734,-450.0,0.00037808,12]
[359444422,1746021046743,-450.0,0.00037808,12]
[359444423,1746021046753,-450.0,0.00037808,12]
[359444424,1746021046762,-450.0,0.00037808,12]
[359444425,1746021046772,-450.0,0.00037808,12]
[359444426,1746021046781,-450.0,0.00037808,12]
[359444427,1746021046791,-580.79,0.00037808,12]
[359444428,1746021046801,-450.0,0.00037808,12]
[359444429,1746021046810,-450.0,0.00037808,12]
[359444430,1746021046820,-450.0,0.00037808,12]
[359444431,1746021046829,-450.0,0.00037808,12]
[359444432,1746021046839,-450.0,0.00037808,12]
[359444433,1746021046848,-450.0,0.00037808,12]
[359444434,1746021046858,-1389.1,0.00037808,12]
[359444435,1746021046867,-450.0,0.00037808,12]
[359444436,1746021046876,-450.0,0.00037808,12]
[359444437,1746021046886,-450.0,0.00037808,12]
[359444438,1746021046896,-450.0,0.00037808,12]
[359444439,1746021046905,-450.0,0.00037808,12]
[359444441,1746021046917,-450.0,0.00037808,12]
[359444443,1746021046926,-450.0,0.00037808,12]
[359444444,1746021046936,-507.41149774,0.00037808,12]
[359444446,1746021046946,-450.0,0.00037808,12]
[359444447,1746021046956,-301.01947994,0.00037808,30]
[359444448,1746021046966,-506.93158951,0.00037808,12]
[359444449,1746021046975,-450.0,0.00037808,12]
[359444450,1746021046984,-450.0,0.00037808,12]
[359444451,1746021046994,-450.0,0.00037808,12]
[359444452,1746021047003,-502.74478166,0.00037808,12]
[359444453,1746021047012,-450.0,0.00037808,12]
[359444454,1746021047022,-213.15010526,0.00037808,12]
[359444455,1746021047031,-450.0,0.00037808,12]
[359444456,1746021047041,-450.0,0.00037808,12]
[359444458,1746021047050,-507.05893722,0.00037808,12]
[359444459,1746021047059,-450.0,0.00037808,12]
[359444460,1746021047068,-504.92494966,0.00037808,12]
[359444461,1746021047077,-450.0,0.00037808,12]
[359444462,1746021047087,-450.0,0.00037808,12]
[359444463,1746021047097,-450.0,0.00037808,12]
[359444464,1746021047107,-595.49114619,0.00037808,12]
[359444465,1746021047117,-450.0,0.00037808,12]
[359444466,1746021047127,-450.0,0.00037808,12]
[359444467,1746021047137,-450.0,0.00037808,12]
[359444468,1746021047147,-506.73524621,0.00037808,12]
[359444469,1746021047157,-450.0,0.00037808,12]
[359444470,1746021047170,-450.0,0.00037808,12]
[359444471,1746021047179,-505.98661033,0.00037808,12]
[359444472,1746021047189,-450.0,0.00037808,12]
[359444473,1746021047199,-450.0,0.00037808,12]
[359444474,1746021047208,-450.0,0.00037808,12]
[359444475,1746021047218,-450.0,0.00037808,12]
[359444476,1746021047228,-450.0,0.00037808,12]
[359444477,1746021047238,-450.0,0.00037808,12]
[359444478,1746021047247,-450.0,0.00037808,12]
[359444479,1746021047257,-500.0,0.00037808,12]
[359444480,1746021047267,-450.0,0.00037808,12]
[359444481,1746021047277,-450.0,0.00037808,12]
[359444482,1746021047287,-498.02399997,0.00037808,12]
[359444483,1746021047298,-450.0,0.00037808,12]
[359444484,1746021047307,-500.0,0.00037808,12]
[359444485,1746021047317,-450.0,0.00037808,12]
[359444486,1746021047327,-450.0,0.00037808,12]
[359444487,1746021047337,-450.0,0.00037808,12]
[359444488,1746021047346,-450.0,0.00037808,12]
[359444489,1746021047356,-450.0,0.00037808,12]
[359444490,1746021047365,-450.0,0.00037808,12]
[359444491,1746021047374,-450.0,0.00037808,12]
[359444492,1746021047383,-450.0,0.00037808,12]
[359444493,1746021047393,-347.20028033,0.00037808,12]
[359444494,1746021047403,-185.39923738,0.00037808,12]
[359444495,1746021047416,-511.41679642,0.00037808,12]
[359444496,1746021047425,-450.0,0.00037808,12]
[359444497,1746021047434,-450.0,0.00037808,12]
[359444498,1746021047571,-472.4642297,0.00037808,12]
[359444499,1746021047583,-450.0,0.00037808,12]
[359444500,1746021047592,-508.60476108,0.00037808,5]
[359444501,1746021047602,-524.13955505,0.00037808,12]
[359444502,1746021047612,-450.0,0.00037808,12]
[359444503,1746021047621,-450.0,0.00037808,12]
[359444504,1746021047630,-509.14343973,0.00037808,12]
[359444505,1746021047639,-450.0,0.00037808,12]
[359444506,1746021047648,-500.0,0.00037808,12]
[359444507,1746021047658,-450.0,0.00037808,12]
[359444508,1746021047670,-450.0,0.00037808,12]
[359444509,1746021047680,-450.0,0.00037808,12]
[359444510,1746021047689,-450.0,0.00037808,12]
[359444511,1746021047698,-517.36365171,0.00037808,12]
[359444512,1746021047707,-450.0,0.00037808,12]
[359444513,1746021047716,-516.03207582,0.00037808,12]
[359444514,1746021047728,-509.91061336,0.00037808,12]
[359444515,1746021047738,-450.0,0.00037808,12]
[359444516,1746021047750,-450.0,0.00037808,12]
[359444517,1746021047760,-450.0,0.00037808,12]
[359444518,1746021047770,-450.0,0.00037808,12]
[359444519,1746021047781,-541.84317542,0.00037808,12]
[359444520,1746021047791,-544.82697855,0.00037808,12]
[359444521,1746021047801,-450.0,0.00037808,12]